Cogmind - Beta 15 @@@ ROGUE MODE // 2025.08.09 @ 16:53:05 Player: Tuja Result: Destroyed by Y-45 Defender with Beam Rifle Performance ------------- Evolutions (2) 1000 Regions Visited (7) 1400 Robots Destroyed (72) 360 Value Destroyed (2851) 2851 Prototype IDs (1) 20 Alien Tech Used (0) 0 Bonus (975) 975 TOTAL SCORE: 6606 Bonus ------- High Alert Combat Kills 75 Entered Garrisons 400 Used RIF Installer 500 Cogmind --------- Core Integrity 0/550 Matter 115/300 Energy 150/150 System Corruption 2% Temperature Cool (9) Movement Walking (120) Location -8/Garrison Parts ------- > --- POWER (1) -------- Micro Nuclear Core > --- PROPULSION (4) --- Aluminum Leg Aluminum Leg > --- UTILITY (4) ------ Medium Storage Unit Improved Targeting Computer Core Analyzer Light Armor Plating > --- WEAPON (2) ------- Mini Grenade Launcher > --- INVENTORY (10) --- Deuterium Engine Deuterium Engine Target Analyzer Target Analyzer Relay Coupler [NC] (25) Particle Gun Light Assault Rifle Heavy Assault Rifle Gauss Rifle Plasma Cutter Peak State ------------ > --- POWER ------------ Micro Nuclear Core > --- PROPULSION ------- Aluminum Leg Aluminum Leg Gravmag System Gravmag System > --- UTILITY ---------- Medium Storage Unit Improved Targeting Computer Light Armor Plating Hacking Suite > --- WEAPON ----------- Light Assault Rifle Heavy Assault Rifle > --- INVENTORY -------- Deuterium Engine Deuterium Engine Target Analyzer Target Analyzer Relay Coupler [NC] Particle Gun Heavy Assault Rifle Gauss Rifle Mini Grenade Launcher [Rating: 26] Favorites ----------- Power Deuterium Engine Engine Deuterium Engine Power Core Light Nuclear Core Propulsion Aluminum Leg Treads Light Treads Leg Aluminum Leg Hover Unit Gravmag System Utility Improved Targeting Computer Device Advanced Heat Sink Storage Medium Storage Unit Processor Improved Targeting Computer Hackware Hacking Suite Protection Light Armor Plating Weapon Light Assault Rifle Energy Gun Heavy Laser Ballistic Gun Light Assault Rifle Ballistic Cannon Light Cannon Launcher Mini Grenade Launcher Special Weapon Enhanced Flamer Build | -11 -10 -9 -9 -8 -8 -8 -8 ------- Run | Yrd Mat Mat Min Mat Gar Mat Gar Slots Evolved 4 | . . 2 . 2 . . . Power . | . . . . . . . . Propulsion 2 | . . 2 . . . . . Utility 2 | . . . . 2 . . . Weapon . | . . . . . . . . Parts Attached 53 | 6 5 10 4 8 10 . 10 Power 9 | 1 1 2 1 1 1 . 2 Engine 7 | 1 1 2 . 1 1 . 1 Core 2 | . . . 1 . . . 1 Reactor . | . . . . . . . . Propulsion 14 | 2 . 3 2 1 2 . 4 Treads 2 | . . . . . 2 . . Leg 10 | 2 . 3 2 1 . . 2 Wheel . | . . . . . . . . Hover 2 | . . . . . . . 2 Flight . | . . . . . . . . Utility 15 | 1 3 . . 5 2 . 4 Device 4 | . 2 . . . 2 . . Storage 2 | 1 . . . 1 . . . Processor 2 | . 1 . . . . . 1 Hackware 2 | . . . . 1 . . 1 Protection 5 | . . . . 3 . . 2 Artifact . | . . . . . . . . Weapon 15 | 2 1 5 1 1 5 . . Energy Gun 5 | 1 1 1 1 . 1 . . Energy Cannon . | . . . . . . . . Ballistic Gun 6 | 1 . 2 . 1 2 . . Ballistic Cannon 1 | . . 1 . . . . . Launcher 1 | . . 1 . . . . . Special Weapon 2 | . . . . . 2 . . Impact Weapon . | . . . . . . . . Slashing Weapon . | . . . . . . . . Piercing Weapon . | . . . . . . . . Special Melee Weapon . | . . . . . . . . Unidentified Prototypes 1 | . . . . 1 . . . Parts Lost 34 | . 2 9 1 5 8 . 9 Power 7 | . 1 2 1 . 1 . 2 Propulsion 10 | . . 4 . 2 2 . 2 Utility 7 | . . . . 2 2 . 3 Weapon 10 | . 1 3 . 1 3 . 2 Highest Loss Streak 4 | . 1 3 1 2 3 . 4 To Critical Strikes . | . . . . . . . . Average Backups 8 | 2 6 7 7 8 9 10 9 Power 2 | . 1 1 1 3 3 3 2 Propulsion . | 1 2 . . . . . . Utility 1 | . . 1 1 . 1 3 2 Weapon 3 | . 2 4 4 3 3 3 3 Tool/Special . | . . . . . . . . Unused Backups 20 | . 4 1 3 2 . . 10 Power 5 | . . 1 . 2 . . 2 Propulsion 4 | . 3 . 1 . . . . Utility 5 | . . . . . . . 5 Weapon 6 | . 1 . 2 . . . 3 Tool/Special . | . . . . . . . . Average Slot Usage (%) 83 | . 96 84 86 86 77 81 79 Engine 7 | . 13 10 . 7 9 9 5 Core 2 | . . . 10 1 . . 3 Treads 3 | . . . . . 4 18 10 Leg 19 | . 28 29 31 25 10 . 5 Device 3 | . 10 . . . 4 9 4 Storage 10 | . 14 11 11 9 9 9 9 Processor 8 | . 1 11 11 9 9 9 9 Hackware 4 | . . . . 8 9 9 6 Protection 3 | . . . . 7 4 . 5 Energy Gun 7 | . 14 6 11 6 3 9 5 Ballistic Gun 11 | . 14 11 11 11 11 9 12 Peak Build Rating 26 | 6 9 13 14 23 24 24 26 Average Rating 16 | 3 7 10 13 19 21 24 20 On Entrance 13 | . 6 9 9 14 20 24 24 Naked Turns . | . . . . . . . . Heaviest Build 30 | 12 15 14 14 29 29 27 30 Greatest Support 45 | 20 20 43 33 45 40 40 40 Greatest Overweight (x) 2 | . . . . 1 2 . 1 Average Overweight (x) . | . . . . . . . . Largest Inventory Capacity 10 | 8 8 8 8 10 10 10 10 Average Capacity 9 | 7 8 8 8 9 10 10 10 Most Carried 10 | 5 8 8 8 10 10 10 10 Average Carried 8 | 3 7 7 7 8 9 10 9 Final Capacity 10 | 8 8 8 8 10 10 10 10 Final Carried 10 | 4 8 8 8 10 10 10 10 Class Distribution -------------------- 63% | Scavenger-Mutant 36% | Mutant Dominant Class ---------------- Mutant | -10/Materials Mutant | -9/Materials Scavenger-Mutant | -9/Mines Scavenger-Mutant | -8/Materials Scavenger-Mutant | -8/Garrison Scavenger-Mutant | -8/Materials Scavenger-Mutant | -8/Garrison Resources | -11 -10 -9 -9 -8 -8 -8 -8 ----------- Run | Yrd Mat Mat Min Mat Gar Mat Gar Matter Collected 1411 | 194 191 249 56 122 313 . 286 Remotely 32 | . 32 . . . . . . Salvage Created 2201 | . 316 610 146 526 317 . 286 Parts 135 | . 26 32 12 41 12 . 12 Haulers Intercepted . | . . . . . . . . Recyclers Shooed 6 | . . 3 1 2 . . . Parts Field Recycled . | . . . . . . . . Retrieved Matter . | . . . . . . . . Parts Self-Destructed . | . . . . . . . . Prevented . | . . . . . . . . Kills | -11 -10 -9 -9 -8 -8 -8 -8 ------- Run | Yrd Mat Mat Min Mat Gar Mat Gar Combat Hostiles Destroyed 62 | . 8 14 5 17 11 . 7 Guns 52 | . 8 10 5 17 5 . 7 Cannons 4 | . . 3 . . 1 . . AOE 6 | . . 1 . . 5 . . Classes Destroyed 11 | . 6 2 . . 2 . 1 Worker 2 | . 1 1 . . . . . Recycler 3 | . 1 1 . 1 . . . Operator 3 | . 1 1 . 1 . . . Watcher 2 | . 1 1 . . . . . Swarmer 24 | . 6 4 3 11 . . . Grunt 22 | . 2 5 2 3 7 . 3 Brawler 1 | . . . . . 1 . . Duelist 1 | . . 1 . . . . . Sentry 10 | . . 4 . 3 2 . 1 Hunter 1 | . . . . . . . 1 Programmer 3 | . . . . . 1 . 2 Best Kill Streak 11 | . 5 7 2 11 3 . 2 Combat Bots Only 11 | . 3 5 2 11 3 . 2 Max Kills in Single Turn 2 | . 2 2 1 2 1 . 1 Gunslinging 1 | . . 1 . 1 . . . Exploded 1 | . . 1 . . 1 . . Melee . | . . . . . . . . Uniques/NPCs Destroyed . | . . . . . . . . Combat | -11 -10 -9 -9 -8 -8 -8 -8 -------- Run | Yrd Mat Mat Min Mat Gar Mat Gar Hostile Shots Fired 377 | . 49 93 32 55 81 . 67 Missed 85 | . 11 23 4 8 20 . 19 Hits 292 | . 38 70 28 47 61 . 48 Melee 4 | . . 4 . . . . . Projectile 288 | . 38 66 28 47 61 . 48 Critical Strikes 14 | . . 2 2 2 5 . 3 Damage Taken 4170 | . 329 909 318 571 1115 . 928 Core 894 | . 44 194 105 41 314 . 196 Absorbed by Shields . | . . . . . . . . Core Remaining (%) 69 | 100 82 . 25 . . . . Volleys Fired 235 | . 30 53 21 47 48 . 36 Largest 2 | . 2 2 2 2 2 . 2 Hottest 149 | . 70 70 76 76 149 . 99 Shots Fired 450 | . 57 105 42 93 86 . 67 Gun 394 | . 57 84 42 93 62 . 56 Cannon 20 | . . 20 . . . . . Launcher 26 | . . 1 . . 14 . 11 Special 10 | . . . . . 10 . . Kinetic 275 | . 30 73 21 63 53 . 35 Thermal 140 | . 18 31 21 30 19 . 21 Explosive 26 | . . 1 . . 14 . 11 Electromagnetic 9 | . 9 . . . . . . Robot Hit Streak 26 | . 9 26 16 14 15 . 25 Robot Miss Streak 6 | . 6 2 2 3 2 . 2 Penetration Max . | . . . . . . . . Secondary Targets 6 | . 1 2 1 2 . . . Max Gunslinging Chain 1 | . 1 1 1 1 . . . Shots Hit Robots 327 | . 32 85 32 67 59 . 52 Core Hits 142 | . 16 33 11 33 32 . 17 Critical Kills . | . . . . . . . . Critical Parts Destroyed 2 | . . . . 2 . . . Critical Strikes 9 | . 3 1 . 4 . . 1 Burn 7 | . 3 1 . 2 . . 1 Destroy 2 | . . . . 2 . . . Melee Attacks . | . . . . . . . . Impact . | . . . . . . . . Slashing . | . . . . . . . . Piercing . | . . . . . . . . Sneak Attacks . | . . . . . . . . Combat Hostiles . | . . . . . . . . Follow-up Attacks . | . . . . . . . . Damage Inflicted 4813 | . 459 1104 324 715 1287 . 924 Guns 3422 | . 459 769 324 715 467 . 688 Cannons 282 | . . 282 . . . . . Explosions 1031 | . . 53 . . 742 . 236 Melee . | . . . . . . . . Ramming . | . . . . . . . . Kinetic 2072 | . 252 677 109 381 316 . 337 Thermal 1653 | . 150 374 215 334 229 . 351 Explosive 1031 | . . 53 . . 742 . 236 Electromagnetic 57 | . 57 . . . . . . Impact . | . . . . . . . . Slashing . | . . . . . . . . Piercing . | . . . . . . . . Highest Corruption 2 | . . . . . . . 2 Average Corruption 2 | . . . . . . . 2 Corruption Purged . | . . . . . . . . Corruption Blocked . | . . . . . . . . Effects 7 | . . . . . . . 7 Matter Fused 1 | . . . . . . . 1 Energy Discharges 3 | . . . . . . . 3 Data Loss (minor) 2 | . . . . . . . 2 Alerts 1 | . . . . . . . 1 Overload Shots . | . . . . . . . . Overflow Damage 24 | . . . . . 20 . 4 Projectiles . | . . . . . . . . Explosions 24 | . . . . . 20 . 4 Melee . | . . . . . . . . Knockbacks 1 | . . 1 . . . . . Impact . | . . . . . . . . Kinetic 1 | . . 1 . . . . . Secondary . | . . . . . . . . Self-Inflicted Damage 352 | . . . . . 161 . 191 Shots 15 | . . . . . 9 . 6 Rammed . | . . . . . . . . Targets Rammed . | . . . . . . . . Kicked . | . . . . . . . . Crushed . | . . . . . . . . Highest Temperature 235 | . 36 86 136 235 148 . 186 Average Temperature 46 | . 14 27 43 75 46 . 73 Received Heat Transfer 1455 | . 36 261 186 234 540 . 198 Siege Activations . | . . . . . . . . Martial Activations . | . . . . . . . . Shielding Activations . | . . . . . . . . Robots Disrupted . | . . . . . . . . Combat Hostiles . | . . . . . . . . Robots Corrupted . | . . . . . . . . Combat Hostiles . | . . . . . . . . Parts Fried . | . . . . . . . . Impact Corruptions . | . . . . . . . . Robots Melted . | . . . . . . . . Combat Hostiles . | . . . . . . . . Parts Melted 8 | . . 1 . 5 2 . . Heat Transferred 4920 | . 666 1172 487 999 856 . 740 Parts Sabotaged . | . . . . . . . . Parts Stolen . | . . . . . . . . Parts Stripped . | . . . . . . . . Power Chain Reactions . | . . . . . . . . Alert | -11 -10 -9 -9 -8 -8 -8 -8 ------- Run | Yrd Mat Mat Min Mat Gar Mat Gar Maximum Alert Level 2 | . . . . 1 2 1 2 Low Security (%) 55 | 100 100 100 100 62 8 . 14 Level 1 26 | . . . . 37 43 100 47 Level 2 18 | . . . . . 48 . 37 Level 3 . | . . . . . . . . Level 4 . | . . . . . . . . Level 5 . | . . . . . . . . High Security . | . . . . . . . . Max Security . | . . . . . . . . Peak Influence 518 | . 97 122 120 277 518 251 417 Initial 251 | . . 15 25 . 157 251 130 Average 183 | . 40 49 32 117 376 228 313 Influence Increases 2048 | . 227 407 165 432 439 . 378 Destroy 0b10 Robot/C 1240 | . 160 280 100 340 220 . 140 Destroy 0b10 Robot/NC 50 | . 20 20 . 10 . . . Destroy Leader 224 | . 32 62 20 70 20 . 20 Successful Hack 43 | . . 19 . 12 12 . . Disable Machine 15 | . . . . . 15 . . Anti-Garrison Action 200 | . . . . . 100 . 100 Destroy Structure 126 | . . 11 . . 72 . 43 Lose Combat Pursuer 150 | . 15 15 45 . . . 75 Influence Decreases 1630 | . 190 378 231 190 165 315 161 Entered New Map 484 | . . 22 41 . 85 265 71 Time Decay 816 | . 170 266 180 150 . 50 . Lost Part 330 | . 20 90 10 40 80 . 90 Squads Dispatched 2 | . 1 . . 1 . . . Investigation . | . . . . . . . . Extermination . | . . . . . . . . Reinforcement 2 | . 1 . . 1 . . . Assault . | . . . . . . . . Garrison . | . . . . . . . . Intercept . | . . . . . . . . Searches Triggered . | . . . . . . . . Construction Impeded . | . . . . . . . . Haulers Reinforced . | . . . . . . . . Active Scanning Responses . | . . . . . . . . Cargo Convoy Interrupts . | . . . . . . . . Stealth | -11 -10 -9 -9 -8 -8 -8 -8 --------- Run | Yrd Mat Mat Min Mat Gar Mat Gar Distress Signals 4 | . 1 3 . . . . . Communications Jammed . | . . . . . . . . Distress Signals . | . . . . . . . . Times Spotted 89 | . 19 23 8 19 11 . 9 Peak Tracking Total 8 | . 4 5 3 8 3 . 5 Tactical Retreats 5 | . 1 1 1 . . . 2 Traps | -11 -10 -9 -9 -8 -8 -8 -8 ------- Run | Yrd Mat Mat Min Mat Gar Mat Gar Traps Triggered 3 | . . . . . 1 . 2 Indirectly . | . . . . . . . . Trap Hack Attempts . | . . . . . . . . Triggered . | . . . . . . . . Disarmed . | . . . . . . . . Reprogrammed . | . . . . . . . . Reused . | . . . . . . . . Traps Extracted . | . . . . . . . . Installed . | . . . . . . . . Triggered . | . . . . . . . . Machines | -11 -10 -9 -9 -8 -8 -8 -8 ---------- Run | Yrd Mat Mat Min Mat Gar Mat Gar Machines Disabled 7 | . . . . . 5 . 2 Max in Single Turn 3 | . . . . . 3 . 1 Garrison Relay 5 | . . . . . 3 . 2 Machines Repaired . | . . . . . . . . Machines Dismantled . | . . . . . . . . Machines Sabotaged . | . . . . . . . . Overloaded Fab Kills . | . . . . . . . . Hacking | -11 -10 -9 -9 -8 -8 -8 -8 --------- Run | Yrd Mat Mat Min Mat Gar Mat Gar Machines Accessed 13 | . 2 5 . 3 1 1 1 Terminals 11 | . 2 5 . 2 1 . 1 Fabricators . | . . . . . . . . Repair Stations . | . . . . . . . . Recycling Units . | . . . . . . . . Scanalyzers . | . . . . . . . . Garrison Access 2 | . . . . 1 . 1 . Total Hacks 22 | . 4 7 . 6 2 2 1 Successful 10 | . . 3 . 3 1 2 1 Failed 12 | . 4 4 . 3 1 . . Catastrophic 4 | . 2 . . 2 . . . Database Lockouts . | . . . . . . . . Manual 13 | . 4 4 . 5 . . . Terminals 19 | . 4 7 . 5 2 . 1 Fabricators . | . . . . . . . . Repair Stations . | . . . . . . . . Recycling Units . | . . . . . . . . Scanalyzers . | . . . . . . . . Garrison Access 3 | . . . . 1 . 2 . Terminal Hacks 7 | . . 3 . 2 1 . 1 Robot Analysis 1 | . . 1 . . . . . Branch Access Points 2 | . . 1 . 1 . . . Emergency Access Points 2 | . . 1 . . . . 1 Locate Traps 1 | . . . . 1 . . . Garrison Registry 1 | . . . . . 1 . . Fabricator Hacks . | . . . . . . . . Repair Station Hacks . | . . . . . . . . Recycling Unit Hacks . | . . . . . . . . Scanalyzer . | . . . . . . . . Garrison Access Hacks 3 | . . . . 1 . 2 . Unlock Access 2 | . . . . 1 . 1 . Coupler Status 1 | . . . . . . 1 . Unauthorized Hacks . | . . . . . . . . Terminals . | . . . . . . . . Fabricators . | . . . . . . . . Repair Stations . | . . . . . . . . Recycling Units . | . . . . . . . . Scanalyzers . | . . . . . . . . Garrison Access . | . . . . . . . . Data Cores Recovered 1 | . . 1 . . . . . Used . | . . . . . . . . Hacking Detections 11 | . 2 4 . 3 1 . 1 Full Trace Events . | . . . . . . . . Feedback Events . | . . . . . . . . Feedback Blocked . | . . . . . . . . Robot Schematics Acquired . | . . . . . . . . Robots Built . | . . . . . . . . Authchips . | . . . . . . . . Time . | . . . . . . . . Total Robot Build Rating . | . . . . . . . . Part Schematics Acquired . | . . . . . . . . Parts Built . | . . . . . . . . Authchips . | . . . . . . . . Time . | . . . . . . . . Total Part Build Rating . | . . . . . . . . Parts Repaired . | . . . . . . . . Time . | . . . . . . . . Parts Recycled . | . . . . . . . . Recycled Matter . | . . . . . . . . Retrieved Matter . | . . . . . . . . Retrieved Components . | . . . . . . . . Parts Scanalyzed . | . . . . . . . . Part Schematics Acquired . | . . . . . . . . Parts Damaged . | . . . . . . . . Bothacking | -11 -10 -9 -9 -8 -8 -8 -8 ------------ Run | Yrd Mat Mat Min Mat Gar Mat Gar Used RIF Installer 1 | . . . . . 1 . . Robots Hacked . | . . . . . . . . Non-combat . | . . . . . . . . Combat . | . . . . . . . . Robot Hacks Applied . | . . . . . . . . Relay Couplers Released 22 | . . . . . 14 . 8 Machine Destruction 19 | . . . . . 11 . 8 Programmers 3 | . . . . . 3 . . Fabnet Peak Effective % . | . . . . . . . . Robots Rewired . | . . . . . . . . Allies Hacked . | . . . . . . . . Hacks Repelled . | . . . . . . . . Allies | -11 -10 -9 -9 -8 -8 -8 -8 -------- Run | Yrd Mat Mat Min Mat Gar Mat Gar Total Allies . | . . . . . . . . Largest Group . | . . . . . . . . Highest-Rated Group . | . . . . . . . . Highest-Rated Ally . | . . . . . . . . Total Orders . | . . . . . . . . Ally Attacks . | . . . . . . . . Total Damage . | . . . . . . . . Kills . | . . . . . . . . Allies Corrupted . | . . . . . . . . Allies Melted . | . . . . . . . . Intel | -11 -10 -9 -9 -8 -8 -8 -8 ------- Run | Yrd Mat Mat Min Mat Gar Mat Gar Active Infowar (turns) 212 | . 212 . . . . . . Sensors 212 | . 212 . . . . . . Robot Analysis Total 1 | . . 1 . . . . . Derelict Logs Recovered 1 | . . . 1 . . . . Drone Launches . | . . . . . . . . Drone Recoveries . | . . . . . . . . Exploration | -11 -10 -9 -9 -8 -8 -8 -8 ------------- Run | Yrd Mat Mat Min Mat Gar Mat Gar Turns Passed 4186 | 63 407 618 718 483 898 106 893 Spaces Moved 2143 | 50 236 329 438 264 352 67 407 Core 19 | 19 . . . . . . . Treads 438 | . . . . . 123 67 248 Legs 1648 | 31 236 329 438 264 229 . 121 Wheels . | . . . . . . . . Hover 38 | . . . . . . . 38 Flight . | . . . . . . . . Fastest Speed 50 | 50 120 120 120 105 105 160 56 Average Speed 141 | 93 120 120 120 120 195 160 164 Slowest Speed 270 | 120 120 120 120 185 270 160 190 Overloaded Moves . | . . . . . . . . Propulsion Burnouts . | . . . . . . . . Robots Hopped . | . . . . . . . . Potential Cave-ins . | . . . . . . . . Cave-ins Triggered . | . . . . . . . . Exploration Rate (%) 34 | 4 34 40 86 31 39 10 28 Regions Visited 7 Branch Regions 1 Pre-discovered Areas 1 | . . . 1 . . . . Known Exits Taken 3 | . . 1 . 1 . 1 . Unknown Exits Taken 3 | 1 1 . 1 . . . . Scrap Searched 1 | . . . 1 . . . . Spaces Dug 7 | . . . . . 7 . . Terrain Destroyed 174 | . . 10 . . 96 . 68 Melee . | . . . . . . . . Projectile 1 | . . . . . . . 1 AOE 173 | . . 10 . . 96 . 67 Terrain Rammed . | . . . . . . . . Walls Destroyed . | . . . . . . . . Machines Disabled . | . . . . . . . . Actions | -11 -10 -9 -9 -8 -8 -8 -8 --------- Run | Yrd Mat Mat Min Mat Gar Mat Gar Total 2871 | 66 306 455 594 350 467 66 567 Wait 283 | 1 13 50 119 16 31 . 53 Move 2135 | 49 235 328 437 263 350 66 407 Hop . | . . . . . . . . Pick Up 81 | 10 15 11 8 12 8 . 17 Fast Attach . | . . . . . . . . Attach 47 | 6 4 9 3 6 8 . 11 Detach . | . . . . . . . . Swap 32 | . 1 2 1 2 17 . 9 Drop 27 | . 8 2 5 4 . . 8 Fire 235 | . 30 53 21 47 48 . 36 Melee . | . . . . . . . . Ram . | . . . . . . . . Kick . | . . . . . . . . Crush . | . . . . . . . . Escape Stasis 31 | . . . . . 5 . 26 Rewire . | . . . . . . . . Trap . | . . . . . . . . Miscellaneous . | . . . . . . . . Route ------- -11/Scrapyard -10/Materials -9/Materials -9/Mines (discovered 2 exits: *Mat x2) -8/Materials -8/Garrison (discovered 3 exits: *Mat x3) -8/Materials -8/Garrison History --------- Turn | Location | Event 2 | -11/Scrapyard | Met Revision 17 8 | -11/Scrapyard | Discovered new exit (range 16) 64 | -11/Scrapyard | Entered Materials 306 | -10/Materials | Build established: Mutant 448 | -10/Materials | Discovered new exit (range 16) 471 | -10/Materials | Entered another Materials area 471 | -9/Materials | Evolved 2 slots: Propulsion x2 491 | -9/Materials | Identified exit to Mines 1041 | -9/Materials | Lost 3 parts (1p2w) 1089 | -9/Materials | Entered Mines 1092 | -9/Mines | Core integrity fell below 50% 1125 | -9/Mines | Met a Derelict bent on vengeance 1420 | -9/Mines | Build established: Scavenger-Mutant 1477 | -9/Mines | A weapon hastily lodged in a ceiling crevice suddenly fell to the ground 1598 | -9/Mines | Learned location of Storage (-7) 1691 | -9/Mines | Discovered new exit (range 13) 1738 | -9/Mines | Discovered new exit (range 10) 1807 | -9/Mines | Entered Materials 1807 | -8/Materials | Evolved 2 slots: Utility x2 2187 | -8/Materials | Destroyed 11 combat bots 2289 | -8/Materials | Identified exit to Garrison 2290 | -8/Materials | Entered Garrison 2331 | -8/Garrison | Discovered new exit (range 58) 2331 | -8/Garrison | Discovered new exit (range 66) 2331 | -8/Garrison | Discovered new exit (range 37) 2350 | -8/Garrison | Triggered checkpoint 2517 | -8/Garrison | Garrison Relay disabled 2612 | -8/Garrison | Triggered checkpoint 2662 | -8/Garrison | Lost 3 parts (1p1n1w) 2850 | -8/Garrison | Triggered checkpoint 2958 | -8/Garrison | Core integrity fell below 50% 2969 | -8/Garrison | Garrison Relay disabled 3001 | -8/Garrison | Garrison Relay disabled 3067 | -8/Garrison | Installed Relay Interface Framework 3188 | -8/Garrison | Entered Materials 3238 | -8/Materials | Identified exit to Garrison 3294 | -8/Materials | Entered Garrison 3358 | -8/Garrison | Triggered checkpoint 3426 | -8/Garrison | Garrison Relay disabled 3455 | -8/Garrison | Garrison Relay disabled 3708 | -8/Garrison | Triggered checkpoint 3839 | -8/Garrison | Core integrity fell below 20% 3865 | -8/Garrison | Lost 4 parts (1p2n1w) 4187 | -8/Garrison | Destroyed by Y-45 Defender with Beam Rifle Last Messages --------------- 03923_ Field strength at 2. 03924_ Stasis field depleted. 03936_ System corrupted: Energy discharge (-37). 03940_ Dropped Aluminum Leg. 03940_ Acquired Aluminum Leg. 03949_ Dropped Gravmag System. 03959_ System corrupted: Matter fused (-7). 03996_ Acquired Plasma Cutter. 04034_ System corrupted: Energy discharge (-37). 04096_ System corrupted: Component data lost. 04098_ W-25 Informer springs to life. 04110_ Dropped Target Analyzer. 04110_ Acquired Core Analyzer. 04111_ Discarded Hacking Suite. 04115_ Acquired Target Analyzer. 04151_ System corrupted: IFF burst signal emitted. 04172_ System corrupted: Energy discharge (-34). 04180_ Hvy. Assault Rifle destroyed. 04180_ Destroyed Hvy. Assault Rifle. Map ----- +----------------------------------------------------+ | ?????????????????????#"! !"#????????????????? | | ?????????????????????#"! !"#????????????????? | | ?????????????????????#"! !"#????????????????? | | ?????????????????????#"! !"#????????????????? | | ?????????????????????#"! !"#????????????????? | | ?????????????????????#"" ""#??????????????+?? | | ??????????#####??????### #######????????????????? | | ??????????# #????????# #????#######???????????? | | ??????????# ##########++#????#!! !!#???????????? | | ??????????# #????#! !#???????????? | | ??????????# +????+! !#???????????? | | ??????????############## #????# !#???????????? | | ???????????????????????# #????### ###???????????? | | ???????????????????????# #??????# #?????????????? | | ???????????????????????# #??????# #?????????????? | | ???????????????????????# #??????# #?????????????? | | ???????????????????????# #??????# #?????????????? | | ??????################## ########+##????????????? | | ??????# == #????????????? | | ??????# ### ########## #????????????? | | ??????# #?# #????????# ######## ##???????????? | | ????### #?##+##????????# ####???# T#???????????? | | ????#"# #??????????????# ## ???+ ##???????????? | | ????# !##???########### ## #???# #????????????? | | ????# ! ##???? ^^+ #???# #????????????? | | ????# !! ##??????????# @ #???# #????????????? | | ##??# #! #??????????# #???# #????????????? | | "#??### ##?+???????# ##?## ##""""## #?? | | #????# ##??????????# Y ### #?? | | ####### ###"""######## #?? | | #?? | | #################### # ## ## ## #?? | | #??????????????????# # ### #? #??? #?? | | ###?????????????????? #? ? ?????? | | ?????????????????????# ### ##? ???? | | ?????????????????????##? +? ??? | | ???????????????????????# ###### ??? | | ???????????????????????# ??????## ## ## ???? | | ???????????????????????#+???????# #? #?? ???? | | ???????????????????????????????? ?? ?????? | | ???????????????????????????????? ?? ???+?? | | ??????????????????????????????+?# ?? ????? | | ?????????????????????????????????# ##???"#??????? | | ?????????????????????????????????? #????????????? | | ?????????????????????????+???????? #??+?????????? | | ?????????????????????????????????+ ?????????????? | | ?????????????????????????????????????????????????? | | ????????????+???+????????????????????????????????? | | ???????????+??????????????????+??????????????????? | | ????????????????????????????????????+????????????? | +----------------------------------------------------+ Best States ------------- Heat Dissipation 50 Energy Generation 15 Energy Capacity 280 Matter Stores 300 Matter Capacity 300 Sight Range 16 Robot Scan Range 14 Terrain Scan Density 10 Armor Coverage 300 Evasion (%) 55 Targeting Accuracy 6 Core Analysis 6 Recoil Reduction 2 Offensive Hacking 10 Item Schematics ----------------- None Robot Schematics ------------------ None Fabricated ------------ Nothing Repaired ---------- Nothing Alien Tech Used ----------------- None Achievements -------------- None Challenges ------------ None Game ------ Seed SniperDispersionCharger Manual? 0 Play Time 00:48:20 Cumulative 48.6 hours Start 2025.08.09 @ 16:06:04 End 2025.08.09 @ 16:53:05 Sessions 1 Manual Loads 0 Difficulty Rogue Special Mode None Game No. 29 Rogue 25 Adventurer 4 Explorer 0 Win Type - Total 0 Types 0/0/0/0/0/0/0/0/0/0 Lore% 35 Gallery% 34 Achievement% 30 Wizard Run 0 Options --------- Layout 1 ASCII 0 Keyboard 0 Movement Numpad Keybinds 1 Fullscreen 1 Font 24/Smallcaps Map View 50x35 Zoom Use 0% Tactical HUD 1 Map Filters NONE Filters NONE Steam 1 RUN: c195d62d-203b-425e-8e39-f540f1fd8fe9